bitfinex-derivatives/quotes_ETHF0:USTF0_20250614
["timestamp","ask_amount","ask_price","bid_price","bid_amount"]
[1749917859895,0.79396,2517.9,2517.8,27.2278]
[1749917860200,0.79396,2517.9,2517.8,30.482]
[1749917860394,0.79396,2517.9,2517.8,55.058]
[1749917860598,0.79399,2517.8,2517.7,40.8]
[1749917860994,2.0462,2518.0,2517.7,0.79402]
[1749917861201,0.79405,2517.6,2517.5,0.00596244]
[1749917861499,0.79405,2517.6,2517.5,24.58096244]
[1749917862092,0.79405,2517.6,2517.5,0.00596244]
[1749917862396,0.79405,2517.6,2517.5,24.58096244]
[1749917863002,0.79405,2517.6,2517.5,0.00596244]
[1749917863198,2.06419268,2517.8,2517.5,24.58196244]
[1749917863406,0.72489268,2517.8,2517.6,0.79404]
[1749917863599,1.51890268,2517.8,2517.6,0.79404]
[1749917864107,0.79402,2517.7,2517.6,0.79404]
[1749917864298,0.6568,2517.8,2517.5,0.80003244]
[1749917864299,0.79405,2517.6,2517.5,0.80003244]
[1749917864499,0.79402,2517.7,2517.6,0.79403]
[1749917864805,0.79402,2517.7,2517.6,0.79405]
[1749917865012,1.4508,2517.8,2517.7,0.79402]
[1749917865305,0.79405,2517.7,2517.5,24.58196244]
[1749917865498,0.79405,2517.7,2517.6,0.79405]
[1749917866107,0.79405,2517.7,2517.5,25.37602244]
[1749917866304,0.79405,2517.6,2517.5,25.37602244]
[1749917867106,0.6568,2517.8,2517.7,0.79402]
[1749917867608,1.45079,2517.8,2517.7,0.79402]
[1749917867798,0.79404,2517.7,2517.6,0.79403]
[1749917868306,0.79397,2517.9,2517.8,0.79396]
[1749917869106,0.655,2518.1,2518.0,0.79393]
[1749917869305,1.4489,2518.1,2518.0,0.79393]
[1749917869511,0.6785,2518.4,2518.0,3.2078]
[1749917869809,0.79386,2518.3,2518.2,0.79385]
[1749917870202,0.6785,2518.4,2518.3,0.79383]
[1749917870598,1.4723,2518.4,2518.3,0.79383]
[1749917871208,0.6785,2518.4,2518.3,0.79383]
[1749917871412,1.4723,2518.4,2518.3,0.79383]
[1749917871705,0.79384,2518.3,2518.2,0.79384]
[1749917872015,0.79382,2518.4,2518.3,0.79383]
[1749917872206,4.5322,2518.8,2518.4,0.7938]
[1749917872403,0.79377,2518.5,2518.4,25.3688]
[1749917872708,0.79377,2518.5,2518.4,24.575]
[1749917874320,6.51642,2518.8,2518.1,7.7354]
[1749917874321,0.7938,2518.4,2518.1,7.7354]
[1749917874514,0.7938,2518.4,2518.3,0.79383]
[1749917875013,0.79383,2518.3,2518.2,25.36784]
[1749917876311,0.79383,2518.3,2518.2,24.574]
[1749917876606,0.79386,2518.2,2518.1,7.25589]
[1749917876813,0.79386,2518.2,2518.1,31.82889]
[1749917877517,0.79386,2518.2,2518.1,31.035]
[1749917877717,0.7939,2518.1,2518.0,3.2078]
[1749917877914,1.4278,2518.1,2518.0,3.2078]
[1749917878216,1.4278,2518.1,2518.0,4.00173]
[1749917878217,0.6339,2518.1,2518.0,4.00173]
[1749917878907,0.79385,2518.3,2518.2,0.79384]
[1749917879106,0.7939,2518.1,2518.0,4.00171]
[1749917879517,0.7939,2518.1,2518.0,3.2078]
[1749917880110,0.7939,2518.1,2518.0,4.00173]
[1749917880518,0.7939,2518.1,2518.0,3.2078]
[1749917880816,0.6339,2518.5,2518.0,3.2078]
[1749917881009,0.79381,2518.4,2518.2,0.79385]
[1749917881204,1.42768,2518.5,2518.2,0.79385]
[1749917881610,1.42768,2518.5,2518.3,4.509]
[1749917881910,1.42768,2518.5,2518.4,24.571]
[1749917884021,0.79389,2518.1,2518.0,3.2078]
[1749917885120,2.13929,2518.1,2518.0,3.2078]
[1749917885320,0.79401,2517.7,2517.6,13.36346367]
[1749917885620,0.794,2517.8,2517.6,34.2338]
[1749917885823,0.79401,2517.7,2517.6,34.2338]
[1749917887017,0.79398,2517.8,2517.6,35.02783]
[1749917887219,0.6361,2518.2,2517.6,34.2338]
[1749917887411,0.79398,2517.8,2517.7,1.3295]
[1749917887613,0.79398,2517.8,2517.6,37.39270367]
[1749917887811,0.79398,2517.8,2517.6,35.02784]
[1749917888220,0.79398,2517.8,2517.6,34.2338]
[1749917888419,0.79397,2517.9,2517.6,35.02782]
[1749917888721,0.79397,2517.9,2517.7,0.79401]
[1749917889220,3.8439,2518.2,2517.7,0.79401]
[1749917889422,0.79395,2517.9,2517.7,0.79401]
[1749917889921,0.79395,2517.9,2517.6,6.87166367]
[1749917890123,0.79395,2517.9,2517.7,32.327]
[1749917890625,0.79395,2517.9,2517.7,1.299]
[1749917890820,0.79395,2517.9,2517.8,24.57]
[1749917891415,5.82857,2518.2,2517.7,7.757]
[1749917891416,0.79398,2517.8,2517.7,7.757]
[1749917891616,0.79398,2517.8,2517.7,32.326]
[1749917891916,0.79398,2517.8,2517.7,1.299]
[1749917892122,0.79398,2517.8,2517.7,24.57]
[1749917892927,0.6361,2518.2,2517.7,25.364]
[1749917893125,0.79393,2518.0,2517.8,0.79398]
[1749917893727,0.79395,2517.9,2517.8,0.79398]
[1749917893925,0.79393,2518.0,2517.8,0.79398]
[1749917894125,0.79393,2518.0,2517.8,2.09608]
[1749917894625,0.79385,2518.3,2518.1,0.79388]
[1749917894829,0.79386,2518.2,2518.0,7.2519]
[1749917895024,0.79392,2518.0,2517.9,6.22156367]
[1749917895222,0.79392,2518.0,2517.9,9.6658]
[1749917895423,0.79398,2517.8,2517.7,9.61687367]
[1749917895616,0.79398,2517.8,2517.7,31.027]
[1749917896120,0.79398,2517.8,2517.7,31.82101]
[1749917896322,0.79399,2517.8,2517.7,24.569]
[1749917896927,0.79401,2517.7,2517.6,8.82286367]
[1749917897128,0.79401,2517.7,2517.6,31.027]
[1749917898131,0.79401,2517.7,2517.6,6.458]
[1749917898331,0.79404,2517.6,2517.5,3.21376244]
[1749917898529,0.79404,2517.6,2517.5,34.24076244]
[1749917898927,0.79404,2517.6,2517.5,9.67176244]
[1749917899227,0.6744,2518.0,2517.5,34.24076244]
[1749917899434,0.79396,2517.9,2517.8,3.2078]
[1749917899735,0.79404,2517.6,2517.5,3.68622611]
[1749917899924,0.79404,2517.6,2517.5,33.14244244]
[1749917900125,2.65925,2518.0,2517.5,33.14244244]
[1749917900126,0.79404,2517.7,2517.5,33.14244244]
[1749917900634,0.79404,2517.7,2517.5,32.34836244]
[1749917900929,0.79404,2517.6,2517.5,32.34836244]
[1749917901432,0.79403,2517.7,2517.5,32.34836244]
[1749917903044,0.79403,2517.7,2517.5,33.14242244]
[1749917903237,0.79404,2517.6,2517.5,6.46396244]
[1749917903429,0.79404,2517.6,2517.5,31.03296244]
[1749917907337,0.79404,2517.6,2517.5,33.39782611]
[1749917907538,0.79404,2517.6,2517.5,8.82882611]
[1749917907738,0.79404,2517.6,2517.5,31.03196244]
[1749917907942,4.00184,2517.6,2517.5,0.00596244]
[1749917908130,1.98537,2517.3,2517.0,24.567]
[1749917908336,0.79423,2517.0,2516.9,6.453]
[1749917908537,0.79423,2517.0,2516.9,31.02]
[1749917910234,0.79423,2517.0,2516.9,6.453]
[1749917910431,0.79426,2516.9,2516.8,3.2078]
[1749917910636,0.7943,2516.8,2516.7,0.00596244]
[1749917910839,2.0846,2516.8,2516.7,0.00596244]
[1749917911234,7.0846,2516.8,2516.7,0.00596244]
[1749917911435,7.0846,2516.8,2516.4,3.2078]
[1749917911436,0.79448,2516.2,2516.1,9.6618]
[1749917911636,0.79448,2516.2,2516.1,3.2078]
[1749917912147,0.79458,2515.9,2515.8,6.454]
[1749917912343,0.79458,2515.9,2515.8,31.022]
[1749917912533,0.6671,2516.1,2515.8,31.022]
[1749917913041,0.79458,2515.9,2515.8,31.022]
[1749917913351,0.79458,2515.9,2515.8,32.3715]
[1749917913639,0.79456,2516.0,2515.8,32.3715]
[1749917913946,0.79458,2515.9,2515.8,32.3715]
[1749917914642,0.79461,2515.8,2515.7,3.2078]
[1749917915040,0.79461,2515.8,2515.7,27.7808]
[1749917915444,0.79459,2515.9,2515.7,27.7808]
[1749917915838,0.6671,2516.1,2515.7,27.7808]
[1749917915839,0.79456,2516.0,2515.7,27.7808]
[1749917916042,0.79458,2515.9,2515.7,27.7808]
[1749917916643,0.79458,2515.9,2515.7,27.7838]
[1749917917652,0.79458,2515.9,2515.7,3.2078]
[1749917918040,0.79464,2515.7,2515.6,0.00596244]
[1749917918241,4.00244,2515.7,2515.6,0.00596244]
[1749917918441,9.00244,2515.7,2515.6,0.00596244]
[1749917919247,9.68724,2515.7,2515.6,0.00596244]
[1749917921352,4.68724,2515.7,2515.6,0.00596244]
[1749917921747,9.68724,2515.7,2515.6,0.00596244]
[1749917921953,0.79484,2515.1,2514.9,25.9184]
[1749917923143,3.2078,2515.4,2514.9,2.13528]
[1749917923344,0.79483,2515.1,2514.9,26.71628]
[1749917923548,0.79483,2515.1,2514.9,25.9214]
[1749917923853,0.79483,2515.1,2514.9,26.71629]
[1749917924043,0.79483,2515.1,2514.9,25.9214]
[1749917924245,0.79486,2515.0,2514.9,25.9214]
[1749917924444,0.79476,2515.4,2514.9,25.9214]
[1749917924643,0.6351,2515.5,2515.3,0.79475]
[1749917924846,0.6351,2515.5,2514.9,29.1292]
[1749917925047,5.19465,2515.4,2514.9,29.1292]
[1749917925247,0.79486,2515.0,2514.9,4.5482]
[1749917925447,0.79486,2515.0,2514.9,29.1312]
[1749917925647,0.79485,2515.1,2514.9,29.1312]
[1749917925853,0.79486,2515.0,2514.9,29.1312]
[1749917926046,0.79485,2515.1,2514.9,29.9261]
[1749917926246,0.79481,2515.2,2515.0,0.79485]
[1749917926546,0.79481,2515.2,2515.0,2.15545]
[1749917927256,2.62187,2515.5,2515.0,2.15545]
[1749917927558,0.79483,2515.1,2515.0,2.15546]
[1749917927755,0.79482,2515.2,2515.0,2.15546]
[1749917927956,1.98685,2515.4,2515.0,1.3606]
[1749917928156,2.62187,2515.5,2515.0,1.3606]
[1749917928157,0.79483,2515.1,2515.0,1.3606]
[1749917928449,0.79482,2515.2,2515.0,2.15546]
[1749917928655,0.79483,2515.1,2515.0,1.3606]
[1749917929055,0.79486,2515.0,2514.9,27.7918]
[1749917929253,0.79486,2515.0,2514.9,3.2078]
[1749917932057,0.79493,2514.8,2514.7,0.00596244]
[1749917933254,0.79491,2514.9,2514.7,0.80090244]
[1749917933452,0.79493,2514.8,2514.7,0.00596244]
[1749917933957,0.7949,2514.9,2514.7,0.00596244]
[1749917934158,4.03983,2515.2,2514.7,0.00596244]
[1749917934364,0.79493,2514.8,2514.7,0.00596244]
[1749917934656,0.79493,2514.8,2514.7,0.80092244]
[1749917934961,0.79493,2514.8,2514.7,0.00596244]
[1749917936147,0.79493,2514.8,2513.5,43.16486367]
[1749917936148,0.79505,2514.4,2513.5,43.16486367]
[1749917936358,0.79518,2514.1,2514.0,3.2078]
[1749917936659,0.79514,2514.2,2514.0,4.00296]
[1749917936852,0.79514,2514.2,2514.1,0.79515]
[1749917937059,3.2078,2514.6,2514.0,3.2078]
[1749917937257,10.47131,2515.1,2514.3,5.1955]
[1749917937451,0.79493,2514.8,2514.7,3.2078]
[1749917937955,0.00596244,2515.0,2514.9,0.79489]
[1749917938257,0.79491,2514.9,2514.7,28.59173]
[1749917938453,0.00596244,2515.0,2514.7,27.7968]
[1749917938661,0.79501,2514.6,2514.4,3.8843]
[1749917938859,0.79501,2514.6,2514.4,28.4733]
[1749917939054,0.79501,2514.6,2514.4,29.26833]
[1749917939453,0.79501,2514.6,2514.5,0.79502]
[1749917940054,0.6453,2514.9,2514.5,0.79502]
[1749917940262,0.79497,2514.7,2514.5,0.79502]
[1749917940463,0.6453,2514.9,2514.4,28.4733]
[1749917940650,0.79501,2514.6,2514.4,28.4733]
[1749917940854,0.6453,2514.9,2514.4,28.4733]
[1749917940855,2.63258,2514.9,2514.4,28.4733]
[1749917941155,0.79497,2514.7,2514.5,0.795]
[1749917941352,0.79497,2514.7,2514.6,0.79499]
[1749917941556,0.00596244,2515.0,2514.8,0.79493]
[1749917941761,0.80083244,2515.0,2514.7,3.2078]
[1749917941961,0.80083244,2515.0,2514.8,0.79491]
[1749917942262,0.7949,2514.9,2514.7,4.00274]
[1749917942660,0.80085244,2515.0,2514.8,0.79493]
[1749917942958,0.00596244,2515.0,2514.7,27.7968]
[1749917943261,0.00596244,2515.0,2514.8,0.79491]
[1749917943262,0.80085244,2515.0,2514.8,0.79491]
[1749917943464,0.80084244,2515.0,2514.9,0.79489]
[1749917943661,0.80084244,2515.0,2514.7,28.59175]
[1749917943662,0.79493,2514.8,2514.7,28.59175]
[1749917943862,0.00596244,2515.0,2514.7,27.7968]
[1749917944052,0.00596244,2515.0,2514.9,0.79489]
[1749917945465,0.00596244,2515.0,2514.9,1.42409]
[1749917945764,0.00596244,2515.0,2514.9,2.08459]
[1749917946157,1.3476,2515.6,2514.9,2.08459]
[1749917946158,0.79469,2515.6,2515.4,0.79472]
[1749917946356,3.2078,2515.8,2515.3,27.7958]
[1749917946655,0.79474,2515.4,2515.3,27.7958]
[1749917946858,3.2078,2515.8,2515.3,27.7958]
[1749917947058,3.21376244,2515.8,2515.4,0.79474]
[1749917947253,0.79473,2515.5,2515.3,28.59651244]
[1749917947459,0.79472,2515.5,2515.3,28.59652244]
[1749917947765,0.79474,2515.4,2515.3,27.80176244]
[1749917947962,0.79472,2515.5,2515.3,28.59653244]
[1749917948164,3.21376244,2515.8,2515.4,0.79472]
[1749917948365,0.7947,2515.5,2515.3,28.59650244]
[1749917948762,0.79467,2515.7,2515.3,27.80176244]
[1749917948962,0.79472,2515.5,2515.3,27.80176244]
[1749917949270,0.79474,2515.4,2515.3,28.59651244]
[1749917949468,0.79473,2515.5,2515.3,28.59652244]
[1749917949662,0.79474,2515.4,2515.3,0.00596244]
[1749917951160,0.79483,2515.1,2515.0,3.2078]
[1749917951365,0.79493,2514.8,2514.7,10.45876]
[1749917951563,0.79493,2514.8,2514.7,35.04276]
[1749917952070,0.79493,2514.8,2514.7,28.58676]
[1749917952261,0.79493,2514.8,2514.7,27.7918]
[1749917952462,0.79493,2514.8,2514.7,3.2078]
[1749917952866,0.79499,2514.6,2514.5,0.00596244]
[1749917953157,1.98724,2514.9,2514.5,0.00596244]
[1749917953360,0.79499,2514.6,2514.5,0.00596244]
[1749917953562,0.79496,2514.7,2514.5,0.00596244]
[1749917953758,0.6757,2515.3,2514.5,0.00596244]
[1749917953958,0.6757,2515.3,2515.1,4.00263]
[1749917954869,0.6757,2515.3,2515.2,0.7948]
[1749917955170,0.6257,2515.4,2515.1,3.2078]
[1749917955364,0.79478,2515.3,2515.1,4.00262]
[1749917955667,0.7948,2515.2,2515.1,3.2078]
[1749917955866,0.6257,2515.4,2515.1,3.2078]
[1749917956174,0.79478,2515.3,2515.1,4.00262]
[1749917956874,0.7948,2515.2,2515.1,3.2078]
[1749917957263,0.6257,2515.4,2515.1,3.2078]
[1749917957467,0.7948,2515.2,2515.1,4.5378]
[1749917957666,0.7948,2515.2,2515.1,3.2078]
[1749917957870,0.79479,2515.3,2515.1,4.00262]
[1749917958177,0.7948,2515.2,2515.1,4.5378]
[1749917959071,0.6257,2515.4,2515.1,4.5378]
[1749917959270,0.6507,2515.6,2515.1,4.5378]
[1749917959465,0.79477,2515.3,2515.2,2.14459]
[1749917959763,2.66683,2515.7,2515.2,1.3498]
[1749917959764,0.6802,2515.7,2515.2,1.3498]
[1749917959969,0.79469,2515.6,2515.5,3.2078]
[1749917960762,0.6802,2515.7,2515.5,3.2078]
[1749917960763,0.79467,2515.7,2515.5,3.2078]
[1749917960961,0.00596244,2515.8,2515.7,0.79464]
[1749917961159,0.00596244,2515.8,2515.7,7.25064]
[1749917961366,0.00596244,2515.8,2515.6,2.14445]
[1749917961571,0.79467,2515.6,2515.5,3.2078]
[1749917961758,0.79466,2515.7,2515.5,34.2448]
[1749917961962,0.79466,2515.7,2515.6,0.79467]
[1749917962565,0.79467,2515.6,2515.5,36.40089]
[1749917963078,0.79464,2515.7,2515.6,0.79465]
[1749917963775,0.00596244,2515.8,2515.7,0.79464]
[1749917964168,0.80057244,2515.8,2515.6,0.79465]
[1749917964382,0.80057244,2515.8,2515.5,37.98113888]
[1749917964383,0.80057244,2515.8,2515.7,0.79464]
[1749917965368,0.79464,2515.7,2515.5,11.81988]
[1749917965573,0.00596244,2515.8,2515.6,25.37266]
[1749917965766,0.79464,2515.7,2515.6,25.37266]
[1749917966272,0.79467,2515.6,2515.5,11.81989]
[1749917966475,0.79467,2515.6,2515.5,35.0355]
[1749917966676,0.79466,2515.7,2515.6,0.79466]
[1749917967174,0.80059244,2515.8,2515.7,0.79464]
[1749917967669,0.00596244,2515.8,2515.7,5.79464]
[1749917968071,0.00596244,2515.8,2515.7,8.16957888]
[1749917968980,0.79453,2516.1,2516.0,0.79453]
[1749917969178,0.79453,2516.1,2516.0,28.57933]
[1749917969374,0.79451,2516.2,2516.1,0.79451]
[1749917969575,0.79452,2516.1,2516.0,28.57933]
[1749917969873,0.79449,2516.2,2516.1,0.7945]
[1749917970069,1.35086244,2516.3,2516.1,0.7945]
[1749917970275,0.00596244,2516.3,2516.2,0.79448]
[1749917970779,0.80041244,2516.3,2516.2,0.79448]
[1749917971480,0.80041244,2516.3,2516.0,31.53153888]
[1749917971775,0.79455,2516.0,2515.9,6.451]
[1749917971973,3.21376244,2516.3,2515.8,0.00596244]
[1749917971974,0.79458,2515.9,2515.8,0.00596244]
[1749917972181,0.79458,2515.9,2515.8,24.57996244]
[1749917973878,0.79458,2515.9,2515.8,0.00596244]
[1749917976174,1.3088,2516.2,2515.8,0.00596244]
[1749917976380,1.3088,2516.2,2515.9,24.573]
[1749917976577,0.79455,2516.0,2515.9,25.36757]
[1749917976771,1.3088,2516.2,2515.9,24.573]
[1749917977081,0.79451,2516.2,2516.1,0.7945]
[1749917977278,0.79451,2516.1,2516.0,5.37974]
[1749917977669,0.7945,2516.2,2516.1,0.79451]
[1749917977874,0.79449,2516.2,2516.1,0.79448]
[1749917978074,0.79449,2516.2,2516.1,1.44498]
[1749917978981,0.79449,2516.2,2516.1,0.6505]
[1749917978982,0.79448,2516.2,2516.1,0.6505]
[1749917979391,0.79452,2516.1,2516.0,3.2078]
[1749917979574,0.79452,2516.1,2516.0,34.2318]
[1749917980176,0.79452,2516.1,2516.0,3.2078]
[1749917980373,0.79452,2516.1,2516.0,27.7788]
[1749917980682,0.79452,2516.1,2515.8,0.00596244]
[1749917980683,0.79458,2515.9,2515.8,0.00596244]
[1749917981278,2.81148,2515.9,2515.8,0.00596244]
[1749917985589,1.45628,2515.9,2515.8,0.00596244]
[1749917985980,9.66408,2515.9,2515.8,2.44e-06]
[1749917986285,12.02783283,2515.9,2515.8,2.44e-06]
[1749917994090,18.47983283,2515.9,2515.8,2.44e-06]
[1749917995984,20.84150382,2515.9,2515.8,2.44e-06]
[1749917996587,20.839553,2515.9,2515.8,2.44e-06]
[1749917998697,0.79486,2514.9,2514.8,1.3161]
[1749917998990,0.79489,2514.8,2514.7,0.6702]
[1749918000298,0.80080244,2515.0,2514.7,5.6702]
[1749918000486,0.00596244,2515.0,2514.9,4.00266]
[1749918000686,0.80079244,2515.0,2514.9,9.6578]
[1749918000990,0.80079244,2515.0,2514.9,14.6578]
[1749918001198,0.79473,2515.4,2514.9,15.45266]
[1749918001408,3.2078,2515.9,2515.3,3.2078]
[1749918001697,3.2078,2516.3,2515.6,3.2078]
[1749918001994,0.79453,2516.0,2515.9,3.2078]
[1749918002398,0.7945,2516.1,2515.9,3.2078]
[1749918002693,0.7945,2516.1,2516.0,1.2888]
[1749918002889,0.7945,2516.1,2516.0,1.9782]
[1749918003394,0.00596244,2516.2,2516.1,0.79448]
[1749918003592,0.80041244,2516.2,2516.1,1.47468]
[1749918004301,0.80041244,2516.2,2516.1,0.6802]
[1749918004993,0.00596244,2516.2,2516.1,12.92468]
[1749918006495,3.29914,2517.0,2516.4,0.79438]
[1749918006800,0.79432,2516.6,2516.5,5.2004]
[1749918006998,0.79432,2516.6,2516.5,11.6494]
[1749918010590,0.00596244,2516.8,2516.5,11.6494]
[1749918010591,0.00596244,2516.8,2516.7,0.79429]
[1749918011896,0.6657,2517.5,2516.7,5.0]
[1749918011897,1.98531,2517.3,2516.7,5.0]
[1749918012099,0.79417,2517.1,2517.0,3.2078]
[1749918012303,0.79417,2517.1,2517.0,9.6558]
[1749918012704,0.79417,2517.1,2517.0,10.3418]
[1749918015205,0.79417,2517.1,2517.0,3.8938]
[1749918015408,0.79426,2516.8,2516.7,3.2078]
[1749918015906,0.7943,2516.7,2516.6,2.0227]
[1749918016099,0.00596244,2517.3,2516.2,0.6662]
[1749918016100,5.19354,2516.8,2516.2,0.6662]
[1749918016293,0.79442,2516.3,2516.1,3.2078]
[1749918016498,0.79445,2516.2,2516.1,3.2078]
[1749918016699,2.7374,2516.7,2516.1,3.2078]
[1749918016910,0.79442,2516.3,2516.2,1.3514]
[1749918024423,1.98607,2516.3,2515.8,3.2078]
[1749918024619,0.79452,2516.0,2515.9,6.447]
[1749918026012,0.79455,2515.9,2515.8,3.2078]
[1749918027611,1.42141,2516.1,2516.0,0.79452]
[1749918027919,0.79455,2516.0,2515.9,0.79453]
[1749918028218,0.79455,2516.0,2515.9,2.10863]
[1749918028514,0.6767,2516.4,2515.9,6.3141]
[1749918028716,0.79441,2516.4,2516.3,0.79443]
[1749918029217,0.79437,2516.6,2516.5,0.79434]
[1749918029512,0.79442,2516.4,2516.3,0.7944]
[1749918029712,0.79442,2516.4,2516.3,5.3302]
[1749918030314,0.79439,2516.5,2516.4,0.79438]
[1749918031019,0.79439,2516.5,2516.4,2.12238]
[1749918031320,0.79435,2516.6,2516.5,0.79433]
[1749918031520,0.79436,2516.5,2516.4,2.12236]
[1749918032218,0.79439,2516.4,2516.3,3.2078]
[1749918033318,0.79439,2516.4,2516.3,4.00222]
[1749918033516,0.6279,2516.7,2516.3,4.00222]
[1749918033517,0.79437,2516.6,2516.5,0.79434]
[1749918034423,2.65071,2516.9,2516.5,6.445]
[1749918034626,0.79427,2516.8,2516.7,3.2078]
[1749918034924,0.79427,2516.8,2516.7,4.0021]
[1749918035226,0.79427,2516.8,2516.7,3.2078]
[1749918035928,0.79433,2516.6,2516.5,6.445]
[1749918036630,0.79436,2516.5,2516.4,3.2078]
[1749918036927,0.79436,2516.5,2516.1,1.2853]
[1749918036928,0.79446,2516.2,2516.1,3.2078]
[1749918037119,0.79455,2515.9,2515.8,9.6528]
[1749918037316,0.79455,2515.9,2515.8,3.2078]
[1749918037526,0.79458,2515.8,2515.7,0.00596244]
[1749918037732,1.45988,2515.8,2515.7,0.00596244]
[1749918037922,2.81958,2515.8,2515.7,0.00596244]
[1749918041419,1.45988,2515.8,2515.7,0.00596244]
[1749918044332,0.79456,2515.9,2515.8,0.79457]
[1749918044527,0.00596244,2516.0,2515.8,3.2078]
[1749918044735,0.00596244,2516.0,2515.9,7.24055]
[1749918045026,0.00596244,2516.0,2515.9,8.60015]
[1749918045829,0.00596244,2516.0,2515.9,15.97508888]
[1749918046430,0.00596244,2516.0,2515.9,10.97508888]
[1749918048038,0.00596244,2516.0,2515.9,15.97508888]
[1749918048233,0.00596244,2516.0,2515.9,13.60015]
[1749918050535,0.00596244,2516.0,2515.9,8.60015]
[1749918050738,0.00596244,2516.0,2515.9,10.97346673]
[1749918051039,0.80048244,2516.0,2515.9,10.97346673]
[1749918052039,0.00596244,2516.0,2515.9,10.97346673]
[1749918052439,0.80048244,2516.0,2515.9,10.97346673]
[1749918053443,0.00596244,2516.0,2515.9,31.80155]
[1749918053833,0.80048244,2516.0,2515.9,31.80155]
[1749918055139,0.80048244,2516.0,2515.9,33.06385]
[1749918055338,0.80048244,2516.0,2515.9,33.06285]
[1749918055642,0.80048244,2516.0,2515.9,32.2683]
[1749918056045,0.79455,2515.9,2515.8,3.2078]
[1749918056342,0.79455,2515.9,2515.8,9.6538]
[1749918056540,2.11125,2515.9,2515.8,9.6538]
[1749918059348,2.11125,2515.9,2515.8,10.44838]
[1749918059550,2.11125,2515.9,2515.8,9.6538]
[1749918060347,0.00596244,2516.0,2515.8,9.6538]
[1749918060649,2.12459,2516.4,2516.3,0.79443]
[1749918060838,0.79443,2516.3,2516.2,34.2098]
[1749918061547,0.79443,2516.3,2516.2,35.00426]
[1749918061748,0.79443,2516.3,2516.2,34.2098]
[1749918062058,1.98616,2516.2,2515.8,5.58111673]
[1749918062350,1.3302,2516.4,2516.3,0.79442]
[1749918062545,0.79439,2516.4,2516.3,0.79442]
[1749918063445,0.79439,2516.4,2516.3,2.14152]
[1749918063748,0.79442,2516.3,2516.2,31.6862]
[1749918064049,0.79442,2516.3,2516.2,31.002]
[1749918064743,0.79442,2516.3,2516.2,32.3491]
[1749918065649,0.79442,2516.3,2516.2,31.002]
[1749918066648,0.79442,2516.3,2516.2,31.79646]
[1749918067150,0.79442,2516.3,2516.2,33.05796]
[1749918068953,0.79442,2516.3,2516.2,32.2635]
[1749918069150,0.79442,2516.3,2516.2,31.002]
[1749918070243,0.79442,2516.3,2516.2,31.79646]
[1749918071653,0.79442,2516.3,2516.2,31.002]
[1749918072357,0.79442,2516.3,2516.2,33.37531673]
[1749918073656,0.79442,2516.3,2516.2,33.37231673]
[1749918073858,0.79442,2516.3,2516.2,30.999]
[1749918074256,0.79442,2516.3,2516.2,33.37231673]
[1749918075061,0.86251268,2516.3,2516.2,33.37231673]
[1749918076256,0.79442,2516.3,2516.2,34.16677673]
[1749918076454,0.79442,2516.3,2516.2,35.53867673]
[1749918076858,0.79442,2516.3,2516.2,33.16536]
[1749918078355,0.79442,2516.3,2516.2,32.3709]
[1749918079462,0.79442,2516.3,2516.2,33.16536]
[1749918079662,0.79442,2516.3,2516.2,33.37684717]
[1749918079863,0.79442,2516.3,2516.2,30.997]
[1749918080157,0.00394705,2516.5,2516.4,0.79439]
[1749918080467,0.79443,2516.4,2516.3,3.17425717]
[1749918080659,0.79443,2516.4,2516.3,30.14164717]
[1749918081463,0.79443,2516.4,2516.3,27.7618]
[1749918082661,0.79443,2516.4,2516.3,24.554]
[1749918083364,2.15462268,2516.4,2516.3,24.554]
[1749918083555,3.14227461,2516.4,2516.3,24.554]
[1749918084456,3.07418193,2516.4,2516.3,24.554]
[1749918086864,0.79446,2516.2,2516.1,3.2078]
[1749918087166,0.79449,2516.1,2516.0,24.553]
[1749918087360,1.42099,2516.1,2516.0,24.553]
[1749918088357,0.79452,2516.0,2515.9,2.37984717]
[1749918088559,0.79452,2516.0,2515.9,26.93284717]
[1749918088760,1.45972,2516.0,2515.9,26.93284717]
[1749918090168,1.45972,2516.0,2515.9,24.553]
[1749918090570,1.45972,2516.0,2515.9,25.34755]
[1749918090867,1.45972,2516.0,2515.9,24.553]
[1749918091070,0.79455,2515.9,2515.8,12.03064717]
[1749918091371,0.79455,2515.9,2515.8,37.37822717]
[1749918091668,0.79455,2515.9,2515.8,36.58364717]
[1749918092270,0.79455,2515.9,2515.8,37.37822717]
[1749918093164,0.79455,2515.9,2515.8,36.58364717]
[1749918094061,0.79458,2515.8,2515.7,2.38580961]
[1749918094267,0.79458,2515.8,2515.7,0.00596244]
[1749918094669,0.79454,2516.0,2515.9,0.79455]
[1749918094869,0.79454,2516.0,2515.9,28.55435]
[1749918095075,0.6355,2516.4,2516.1,0.79446]
[1749918095265,0.6355,2516.4,2516.2,3.2078]
[1749918095266,0.79443,2516.3,2516.2,3.2078]
[1749918095475,0.79443,2516.3,2516.2,27.7598]
[1749918095677,0.79443,2516.3,2516.2,28.55426]
[1749918095869,0.79443,2516.3,2516.2,31.60351597]
[1749918096071,0.79442,2516.3,2516.2,29.22505]
[1749918096278,0.00394705,2516.5,2516.3,0.79441]
[1749918096279,0.79441,2516.4,2516.3,0.79441]
[1749918096470,0.79441,2516.4,2516.3,3.76136364]
[1749918097370,0.00394705,2516.5,2516.4,0.79439]
[1749918097678,0.00394705,2516.5,2516.4,36.31220107]
[1749918097874,0.79421,2517.0,2516.9,0.79424]
[1749918098378,0.79424,2516.9,2516.8,30.13707543]
[1749918098570,0.79424,2516.9,2516.8,29.1433]
[1749918098770,0.79424,2516.9,2516.8,29.93757]